fUST/lending_fUST_20251030
["ID","MTS","AMOUNT","RATE_DAILY","PERIOD"]
[392630890,1761763842648,-153.12,0.00032173,15]
[392630891,1761763842657,-171.32716463,0.00032179,2]
[392630892,1761763842670,-1051.77,0.00032193,15]
[392630893,1761763842679,-623.64375,0.000322,120]
[392630894,1761763842688,-3303.94,0.000322,7]
[392630895,1761763842698,-239.97634572,0.00032207,2]
[392630896,1761763842707,-155.29081013,0.00032207,2]
[392630897,1761763842717,-155.548847,0.0003225,60]
[392630898,1761763842727,-153.12,0.00032273,15]
[392630899,1761763842737,-1051.77,0.00032293,15]
[392630900,1761763842746,-288.40646554,0.00032328,24]
[392630901,1761763842756,-167.85079579,0.00032339,2]
[392630902,1761763842765,-153.12,0.00032373,15]
[392630903,1761763842776,-1051.77,0.00032393,15]
[392630904,1761763842786,-250000.0,0.000324,2]
[392630905,1761763842795,-167.85079579,0.00032439,2]
[392630906,1761763842806,-153.12,0.00032473,15]
[392630907,1761763842816,-1051.77,0.00032493,15]
[392630908,1761763842827,-167.85079579,0.00032539,2]
[392630909,1761763842836,-153.12,0.00032573,15]
[392630910,1761763842846,-1051.77,0.00032593,15]
[392630911,1761763842857,-1000.0,0.00032603,120]
[392630912,1761763842867,-151.0,0.00032633,2]
[392630913,1761763842877,-167.85079579,0.00032639,2]
[392630914,1761763842887,-151.0,0.0003264,2]
[392630915,1761763842897,-151.0,0.00032644,2]
[392630916,1761763842907,-151.0,0.00032662,2]
[392630917,1761763842922,-153.12,0.00032673,15]
[392630918,1761763842933,-393.5793405,0.00032685,30]
[392630919,1761763842942,-393.5793405,0.00032685,30]
[392630920,1761763842952,-393.3354969,0.00032685,30]
[392630921,1761763842962,-278.0,0.0003269,2]
[392630922,1761763842972,-1051.77,0.00032693,15]
[392630923,1761763842981,-7582.21,0.000327,2]
[392630924,1761763842991,-167.85079579,0.00032739,2]
[392630925,1761763843000,-153.25379363,0.00032773,15]
[392630926,1761763843010,-1051.77,0.00032793,15]
[392630927,1761763843019,-163.6085661,0.00032822,30]
[392630928,1761763843029,-299.2154913,0.00032822,30]
[392630929,1761763843038,-591.0274796,0.00032822,30]
[392630930,1761763843048,-299.2154913,0.00032822,30]
[392630931,1761763843057,-591.0274796,0.00032822,30]
[392630932,1761763843066,-163.6085661,0.00032822,30]
[392630933,1761763843075,-163.6085661,0.00032822,30]
[392630934,1761763843089,-591.0274796,0.00032822,30]
[392630935,1761763843098,-163.6085661,0.00032822,30]
[392630936,1761763843109,-591.0274796,0.00032822,30]
[392630937,1761763843118,-1851.53,0.00032845,2]
[392630938,1761763843127,-200.0,0.00032854,120]
[392630939,1761763843137,-1006.59175075,0.00032876,5]
[392630940,1761763843146,-1999.0,0.00032876,120]
[392630941,1761763843155,-151.0,0.00032877,31]
[392630942,1761763843165,-151.0,0.00032877,31]
[392630943,1761763843178,-151.0,0.00032877,31]
[392630944,1761763843188,-151.0,0.00032877,31]
[392630945,1761763843197,-166.658767,0.00032877,31]
[392630946,1761763843206,-151.0,0.00032877,31]
[392630947,1761763843215,-151.0,0.00032877,31]
[392630948,1761763843224,-151.0,0.00032877,31]
[392630950,1761763843233,-151.0,0.00032877,31]
[392630951,1761763843241,-151.0,0.00032877,31]
[392630952,1761763843250,-151.0,0.00032877,31]
[392630953,1761763843259,-151.0,0.00032877,31]
[392630954,1761763843268,-227.253124,0.00032877,31]
[392630955,1761763843278,-25004.16548683,0.00032885,10]
[392630956,1761763843287,-1051.77,0.00032893,60]
[392630957,1761763843296,-160.0,0.00032898,5]
[392630958,1761763843305,-1396.09319438,0.000329,120]
[392630959,1761763843314,-495.10269952,0.000329,120]
[392630960,1761763843323,-1823.43533565,0.000329,120]
[392630961,1761763843332,-820.1646498,0.000329,120]
[392630962,1761763843342,-337.73312814,0.000329,120]
[392630963,1761763843351,-801.54056705,0.000329,120]
[392630964,1761763843361,-478.6216411,0.000329,120]
[392630966,1761763843370,-718.72407522,0.000329,120]
[392630968,1761763843379,-173.05814866,0.000329,120]
[392630969,1761763843388,-1284.12213752,0.000329,120]
[392630971,1761763843397,-1906.04218007,0.000329,120]
[392630973,1761763843406,-167.85079579,0.00032939,2]
[392630975,1761763843415,-1051.77,0.00032993,60]
[392630977,1761763843428,-60166.15731449,0.00033,7]
[392630980,1761763843441,-14359.1,0.00033,7]
[392630982,1761763843452,-7809.99999999,0.00033,7]
[392630984,1761763843464,-117664.74268552,0.00033,7]
[392630986,1761763843474,-156.22224036,0.00033,5]
[392630988,1761763843486,-14773.36836487,0.00033,2]
[392630990,1761763843498,-500.0,0.00033,2]
[392630992,1761763843508,-1133.1530513,0.00033,60]
[392630994,1761763843524,-179.18,0.00033,30]
[392630996,1761763843533,-161.0,0.00033,120]
[392630997,1761763843542,-647.42844994,0.00033,120]
[392630998,1761763843551,-1134.0,0.00033,7]
[392630999,1761763843560,-1051.77,0.00033093,60]
[392631000,1761763843570,-200.0,0.000331,7]
[392631001,1761763843580,-5000.0,0.00033135,3]
[392631002,1761763843589,-1000.0,0.00033151,120]
[392631003,1761763843598,-980.070191,0.00033165,2]
[392631004,1761763843608,-1051.77,0.00033193,60]
[392631005,1761763843617,-1876.14914774,0.000332,117]
[392631006,1761763843627,-1876.14914771,0.000332,117]
[392631007,1761763843636,-1876.14914771,0.000332,117]
[392631008,1761763843645,-1876.14914771,0.000332,117]
[392631009,1761763843654,-886.72978756,0.0003321,120]
[392631010,1761763843663,-335.80122828,0.00033261,7]
[392631011,1761763843678,-500.0,0.00033288,7]
[392631012,1761763843688,-1051.77,0.00033293,60]
[392631013,1761763843698,-3303.94,0.000333,7]
[392631014,1761763843707,-412.0,0.00033331,2]
[392631015,1761763843716,-155.548847,0.00033375,60]
[392631016,1761763843726,-1051.77,0.00033393,60]
[392631017,1761763843735,-1000.0,0.00033399,13]
[392631018,1761763843744,-168640.13856331,0.000334,2]
[392631019,1761763843756,-26903.92387572,0.000334,2]
[392631020,1761763843767,-54455.93756097,0.000334,2]
[392631021,1761763843777,-1533.59365343,0.0003342,2]
[392631022,1761763843786,-1051.77,0.00033493,60]
[392631023,1761763843797,-69171.98850362,0.000335,7]
[392631024,1761763843818,-23983.44728627,0.000335,7]
[392631025,1761763843829,-25607.91246596,0.000335,7]
[392631026,1761763843838,-623.64375,0.000335,120]
[392631027,1761763843848,-200.0,0.000335,7]
[392631028,1761763843857,-5088.0,0.00033507,60]
[392631029,1761763843868,-5693.83039591,0.00033559,60]
[392631030,1761763843879,-1519.48035653,0.00033559,60]
[392631031,1761763843892,-2786.68924756,0.00033559,60]
[392631032,1761763843901,-10000.0,0.00033559,60]
[392631033,1761763843910,-2625.29180296,0.00033559,60]
[392631034,1761763843926,-2764.25653728,0.00033559,60]
[392631035,1761763843936,-4610.45165976,0.00033559,60]
[392631036,1761763843944,-769.0,0.00033562,60]
[392631037,1761763843953,-1876.14914771,0.00033589,118]
[392631038,1761763843962,-1051.77,0.00033593,60]
[392631039,1761763843971,-2702.62919253,0.000336,14]
[392631040,1761763843983,-4879.58080747,0.000336,14]
[392631041,1761763843992,-403.04,0.00033606,60]
[392631042,1761763844003,-400.0,0.00033607,60]
[392631043,1761763844013,-424.17,0.00033607,60]
[392631044,1761763844022,-579.0,0.00033608,60]
[392631045,1761763844031,-2000.0,0.0003361,120]
[392631046,1761763844040,-500.0,0.00033612,30]
[392631047,1761763844049,-500.0,0.00033612,30]
[392631048,1761763844059,-500.0,0.00033612,15]
[392631049,1761763844068,-500.0,0.00033612,30]
[392631050,1761763844077,-500.0,0.00033612,7]
[392631051,1761763844086,-235.07,0.00033612,30]
[392631052,1761763844095,-1482.0,0.00033617,60]
[392631053,1761763844103,-10000.0,0.00033617,60]
[392631054,1761763844112,-2611.25,0.00033617,60]
[392631055,1761763844121,-10000.0,0.00033617,60]
[392631056,1761763844131,-6184.13,0.00033617,60]
[392631057,1761763844141,-1414.54,0.00033624,60]
[392631058,1761763844150,-205.8123487,0.00033624,120]
[392631059,1761763844159,-256.68525,0.00033636,2]
[392631060,1761763844172,-720.0,0.00033659,30]
[392631061,1761763844185,-10000.0,0.00033667,60]
[392631062,1761763844201,-300.0,0.0003369,2]
[392631063,1761763844212,-812.55836509,0.0003369,2]
[392631064,1761763844222,-259.11169962,0.0003369,2]
[392631065,1761763844231,-328.16179669,0.0003369,2]
[392631066,1761763844239,-292.8765729,0.0003369,2]
[392631067,1761763844248,-639.49136135,0.0003369,2]
[392631068,1761763844258,-1366.64947014,0.0003369,2]
[392631069,1761763844268,-157.17290657,0.0003369,2]
[392631070,1761763844279,-158.17575405,0.0003369,2]
[392631071,1761763844288,-1723.28660458,0.0003369,2]
[392631072,1761763844297,-2083.90494823,0.0003369,2]
[392631073,1761763844306,-509.45737668,0.0003369,2]
[392631074,1761763844315,-179.96015765,0.0003369,2]
[392631075,1761763844323,-469.57923995,0.0003369,2]
[392631076,1761763844333,-189.83351618,0.0003369,2]
[392631077,1761763844342,-1199.21048953,0.0003369,2]
[392631078,1761763844352,-1401.83326452,0.0003369,2]
[392631079,1761763844361,-653.47777694,0.0003369,2]
[392631080,1761763844370,-203.68345458,0.0003369,2]
[392631081,1761763844379,-2920.0,0.0003369,2]
[392631082,1761763844388,-1447.73785415,0.0003369,2]
[392631083,1761763844397,-386.20073236,0.0003369,2]
[392631084,1761763844406,-202.05454831,0.0003369,2]
[392631085,1761763844415,-3159.04930195,0.0003369,2]
[392631086,1761763844430,-365.91379647,0.0003369,2]
[392631087,1761763844440,-167.15600213,0.0003369,2]
[392631088,1761763844450,-150.869318,0.0003369,2]
[392631089,1761763844459,-259.4454452,0.0003369,2]
[392631090,1761763844469,-2964.61532721,0.0003369,2]
[392631091,1761763844478,-2000.55063613,0.0003369,2]
[392631092,1761763844490,-5498.86981674,0.0003369,7]
[392631093,1761763844500,-26082.09465908,0.0003369,12]
[392631094,1761763844512,-91561.66481558,0.0003369,2]
[392631095,1761763844522,-22735.37527135,0.0003369,2]
[392631096,1761763844531,-3895.82193885,0.0003369,2]
[392631097,1761763844540,-241.17958488,0.0003369,10]
[392631098,1761763844549,-51884.65238171,0.0003369,2]
[392631099,1761763844558,-4457.48547817,0.0003369,8]
[392631100,1761763844568,-6316.98894923,0.0003369,2]
[392631101,1761763844579,-1099.12717944,0.0003369,10]
[392631102,1761763844588,-3752.31236028,0.0003369,7]
[392631103,1761763844597,-7508.65669609,0.0003369,2]
[392631104,1761763844606,-39372.27627806,0.0003369,2]
[392631105,1761763844616,-1500.0,0.0003369,3]
[392631106,1761763844626,-200.0,0.0003369,10]
[392631107,1761763844635,-10624.94078429,0.0003369,7]
[392631108,1761763844645,-30561.02624708,0.0003369,2]
[392631109,1761763844654,-5918.26234586,0.0003369,2]
[392631110,1761763844663,-10721.95868473,0.0003369,2]
[392631111,1761763844677,-800.14768389,0.0003369,3]
[392631112,1761763844686,-100631.02069081,0.0003369,2]
[392631113,1761763844696,-3780.12798862,0.0003369,2]
[392631114,1761763844706,-158.0,0.0003369,10]
[392631115,1761763844715,-58500.0,0.0003369,2]
[392631116,1761763844725,-704.91127334,0.0003369,2]
[392631117,1761763844734,-498.0,0.0003369,7]
[392631118,1761763844744,-154.77694277,0.0003369,7]
[392631119,1761763844754,-177.00010832,0.0003369,7]
[392631120,1761763844763,-1988.59999999,0.0003369,7]
[392631121,1761763844772,-195.52196012,0.0003369,12]
[392631122,1761763844782,-2099.77870132,0.0003369,2]
[392631123,1761763844791,-21642.64467162,0.0003369,2]
[392631124,1761763844800,-5000.0,0.0003369,15]
[392631125,1761763844810,-7000.0,0.0003369,15]
[392631126,1761763844819,-271653.49749539,0.0003369,20]
[392631127,1761763844840,-22154.05977997,0.0003369,20]
[392631128,1761763844887,-3269.91,0.0003,10]
[392631129,1761763844897,-4215.24005918,0.0003369,20]
[392631130,1761763844909,-22039.98322879,0.0003369,20]
[392631131,1761763844925,-9560.33132031,0.0003369,20]
[392631132,1761763845043,-383.43168906,0.00023909,2]
[392631134,1761763845054,-19928.18084063,0.0003369,20]
[392631137,1761763845065,-33150.0,0.0003369,20]
[392631139,1761763845078,-371031.83198793,0.0003369,20]
[392631141,1761763845090,-217295.82266095,0.0003369,20]
[392631142,1761763845101,-12041.34074433,0.0003369,20]
[392631143,1761763845112,-18675.35110289,0.0003369,20]
[392631144,1761763845123,-18209.0836389,0.0003369,20]
[392631145,1761763845134,-1100.0,0.0003369,20]
[392631299,1761763875273,-880.65,0.000246,7]
[392631300,1761763875285,-5586.35,0.000246,7]
[392631301,1761763875294,-6467.0,0.000257,7]
[392631302,1761763875304,-6467.0,0.000268,7]
[392631303,1761763875313,-6467.0,0.00028,7]
[392631304,1761763875321,-14631.40825326,0.0003369,20]
[392631305,1761763875332,-43865.0276062,0.0003369,20]
[392631306,1761763875354,-143255.18249784,0.0003369,20]
[392631307,1761763875363,-150.0,0.0003369,2]
[392631308,1761763875373,-1547.07167867,0.0003369,14]
[392631309,1761763875383,-993.59166363,0.0003369,5]
[392631310,1761763875392,-200.11527617,0.0003369,3]
[392631311,1761763875401,-618.0,0.0003369,2]
[392631312,1761763875410,-870.5719664,0.0003369,25]
[392631313,1761763875419,-70094.46141464,0.0003369,2]
[392631314,1761763875428,-920.47370458,0.0003369,30]
[392631315,1761763875436,-1145.48745333,0.0003369,32]
[392631316,1761763875445,-361.12898909,0.0003369,31]
[392631317,1761763875454,-2500.97889237,0.0003369,7]
[392631318,1761763875463,-1055.55086454,0.0003369,45]
[392631319,1761763875475,-3100.0,0.0003369,7]
[392631320,1761763875502,-412.61888484,0.0003369,30]
[392631321,1761763875511,-192.96542094,0.0003369,30]
[392631322,1761763875520,-201.43853423,0.0003369,30]
[392631323,1761763875529,-1174.58948224,0.0003369,30]
[392631324,1761763875540,-13256.29517275,0.0003369,5]
[392631325,1761763875549,-2526.06854242,0.0003369,7]
[392631326,1761763875558,-1946.49457687,0.0003369,5]
[392631327,1761763875567,-1000.02288797,0.0003369,30]
[392631328,1761763875578,-83379.08630267,0.0003369,30]
[392631329,1761763875588,-3637.71714337,0.0003369,17]
[392631330,1761763875597,-10197.12530797,0.0003369,10]
[392631331,1761763875607,-1613.64,0.0003369,30]
[392631332,1761763875617,-397830.15503057,0.0003369,30]
[392631333,1761763875631,-23036.86672752,0.0003369,30]
[392631334,1761763875642,-1922.9000002,0.0003369,30]
[392631335,1761763875653,-4809.02122753,0.0003369,30]
[392631336,1761763875664,-810.01240007,0.0003369,30]
[392631339,1761764069186,57896.973999,0.0003013,120]
[392631340,1761764105795,1144.3535,0.00030136,120]
[392631364,1761764224696,20000.0,0.0003,120]
[392631371,1761764454067,3221.78,0.00019212,2]
[392631373,1761764673116,302.93942128,0.00019116,2]
[392631397,1761764828122,-154.08346829,0.00019699,4]
[392631398,1761764828144,-235.47637768,0.00019958,2]
[392631399,1761764829120,-58.77740987,0.00019958,2]
[392631400,1761764829141,-141.66805267,0.00020414,2]
[392631401,1761764842122,-1326.79094715,0.00020414,2]
[392631402,1761764850074,-468.39772775,0.00020414,2]
[392631404,1761764957087,-425.21572658,0.00019633,2]
[392631494,1761765031894,-1000.0,0.00019611,2]
[392631497,1761765031906,-573.78427342,0.00019633,2]
[392631499,1761765031918,-151.60641508,0.00020373,2]
[392631500,1761765031927,-5213.15530173,0.00020414,2]
[392631503,1761765031936,-293.36594489,0.00020521,2]
[392631506,1761765031947,-1200.0,0.00020626,2]
[392631508,1761765031956,-300.0,0.00020627,2]
[392631510,1761765031965,-300.0,0.00020627,2]
[392631512,1761765031974,-151.0,0.00020627,2]
[392631515,1761765031985,-151.0,0.00020627,2]
[392631518,1761765031994,-151.0,0.00020627,2]
[392631521,1761765032004,-151.0,0.00020627,2]
[392631524,1761765032014,-151.0,0.00020627,2]
[392631527,1761765032022,-151.0,0.00020627,2]
[392631530,1761765032032,-151.0,0.00020627,2]
[392631533,1761765032041,-151.0,0.00020627,2]
[392631536,1761765032050,-151.0,0.00020627,2]
[392631539,1761765032058,-151.0,0.00020627,2]
[392631542,1761765032068,-151.0,0.00020627,2]
[392631545,1761765032078,-151.0,0.00020627,2]
[392631548,1761765032087,-151.0,0.00020627,2]
[392631551,1761765032096,-151.0,0.00020627,2]
[392631552,1761765032107,-151.0,0.00020627,2]
[392631555,1761765032116,-151.0,0.00020627,2]
[392631557,1761765032124,-151.0,0.00020627,2]
[392631559,1761765032133,-151.0,0.00020627,2]
[392631561,1761765032142,-151.0,0.00020627,2]
[392631563,1761765032151,-151.0,0.00020627,2]
[392631565,1761765032160,-1314.1,0.00020628,10]
[392631567,1761765032169,-998.0,0.0002063,2]
[392631569,1761765032178,-50000.0,0.00020631,2]
[392631571,1761765032187,-980.98,0.00020631,3]
[392631572,1761765032197,-500.0,0.00020637,2]
[392631573,1761765032208,-500.0,0.00020637,2]
[392631574,1761765032218,-500.0,0.00020637,2]
[392631575,1761765032227,-500.0,0.00020637,2]
[392631576,1761765032237,-297.59758791,0.00020637,2]
[392631577,1761765032246,-478.88743157,0.00020637,2]
[392631578,1761765032255,-606.281836,0.00020637,2]
[392631579,1761765032264,-500.0,0.00020637,2]
[392631581,1761765032273,-500.0,0.00020637,2]
[392631583,1761765032282,-500.0,0.00020637,2]
[392631585,1761765032292,-314.26356231,0.00020637,2]
[392631587,1761765032301,-500.0,0.00020637,2]
[392631589,1761765032310,-500.0,0.00020637,2]
[392631591,1761765032321,-722.46890604,0.00020637,2]
[392631593,1761765032330,-722.46890604,0.00020637,2]
[392631595,1761765032340,-427.99402976,0.00020637,2]
[392631596,1761765032349,-722.46890604,0.00020637,2]
[392631597,1761765032358,-722.46890604,0.00020637,2]
[392631598,1761765032367,-722.46890604,0.00020637,2]
[392631600,1761765032377,-722.46890604,0.00020637,2]
[392631602,1761765032386,-722.46890604,0.00020637,2]
[392631604,1761765032547,-722.46890604,0.00020637,2]
[392631605,1761765032562,-722.46890604,0.00020637,2]
[392631606,1761765032573,-722.46890604,0.00020637,2]
[392631607,1761765032582,-722.46890604,0.00020637,2]
[392631608,1761765032591,-722.46890604,0.00020637,2]
[392631609,1761765032599,-722.46890604,0.00020637,2]
[392631610,1761765032609,-722.46890604,0.00020637,2]
[392631611,1761765032618,-722.46890604,0.00020637,2]
[392631612,1761765032629,-722.46890604,0.00020637,2]
[392631613,1761765032638,-722.46890604,0.00020637,2]
[392631614,1761765032648,-722.46890604,0.00020637,2]
[392631615,1761765032657,-722.46890604,0.00020637,2]
[392631616,1761765032666,-722.46890604,0.00020637,2]
[392631617,1761765032676,-722.46890604,0.00020637,2]
[392631618,1761765032685,-805.036781,0.00020637,2]
[392631619,1761765032694,-805.036781,0.00020637,2]
[392631620,1761765032704,-805.036781,0.00020637,2]
[392631621,1761765032713,-805.036781,0.00020637,2]
[392631622,1761765032723,-805.036781,0.00020637,2]
[392631623,1761765032732,-805.036781,0.00020637,2]
[392631624,1761765032741,-805.036781,0.00020637,2]
[392631625,1761765032750,-500.0,0.00020638,2]
[392631626,1761765032760,-28268.5754371,0.00020638,2]
[392631627,1761765032769,-32106.77624888,0.00020641,2]
[392631628,1761765032779,-500.0,0.00020673,2]
[392631629,1761765032788,-500.0,0.00020673,2]
[392631630,1761765032797,-500.0,0.00020673,2]
[392631631,1761765032806,-644.91272426,0.00020673,2]
[392631632,1761765032815,-637.54064861,0.00020673,2]
[392631633,1761765032826,-632.47753653,0.00020673,2]
[392631634,1761765032835,-500.0,0.00020673,2]
[392631635,1761765032844,-500.0,0.00020673,2]
[392631636,1761765032854,-512.38663092,0.00020673,2]
[392631637,1761765032863,-500.92889211,0.00020673,2]
[392631638,1761765032873,-500.0,0.00020673,2]
[392631639,1761765032882,-500.0,0.00020673,2]
[392631640,1761765032891,-227.58880281,0.00020673,2]
[392631641,1761765032901,-500.0,0.00020673,2]
[392631642,1761765032914,-501.84657339,0.00020673,2]
[392631643,1761765032936,-500.0,0.00020673,2]
[392631644,1761765032950,-500.0,0.00020673,2]
[392631645,1761765032960,-500.0,0.00020673,2]
[392631646,1761765032971,-500.0,0.00020673,2]
[392631647,1761765032984,-481.77479607,0.00020673,2]
[392631648,1761765032993,-500.0,0.00020673,2]
[392631649,1761765033003,-500.0,0.00020673,2]
[392631650,1761765033013,-150.0,0.00020673,2]
[392631651,1761765033023,-500.6103021,0.00020673,2]
[392631652,1761765033033,-343.6144628,0.00020673,2]
[392631653,1761765033042,-154.68811614,0.0002081,2]
[392631654,1761765033052,-160.0,0.00020843,2]
[392631655,1761765033062,-634.09,0.00020881,2]
[392631656,1761765033072,-634.09,0.00020881,2]
[392631657,1761765033085,-634.09,0.00020881,2]
[392631658,1761765033095,-500.0,0.00020881,2]
[392631659,1761765033105,-500.0,0.00020881,2]
[392631660,1761765033115,-500.0,0.00020881,2]
[392631661,1761765033126,-500.0,0.00020912,2]
[392631662,1761765033136,-500.0,0.00020973,2]
[392631663,1761765033147,-500.0,0.00020973,2]
[392631664,1761765033156,-500.59335303,0.00020973,2]
[392631665,1761765033167,-158.68900619,0.00020973,2]
[392631666,1761765033177,-158.37423291,0.00020973,2]
[392631667,1761765033186,-158.68210878,0.00020973,2]
[392631668,1761765033196,-160.41548798,0.00020973,2]
[392631669,1761765033207,-500.51195261,0.00020973,2]
[392631670,1761765033217,-160.31922747,0.00020973,2]
[392631671,1761765033226,-158.29672327,0.00020973,2]
[392631672,1761765033236,-237.14839342,0.00020973,2]
[392631673,1761765033246,-160.05418299,0.00020973,2]
[392631674,1761765033256,-358.97187652,0.00020973,2]
[392631675,1761765033265,-158.69429639,0.00020973,2]
[392631676,1761765033275,-500.23918606,0.00020973,2]
[392631677,1761765033285,-500.0,0.00020973,2]
[392631678,1761765033295,-257.50623871,0.00020973,2]
[392631679,1761765033305,-500.2858917,0.00020973,2]
[392631680,1761765033316,-500.0,0.00020973,2]
[392631681,1761765033328,-500.32375475,0.00020973,2]
[392631682,1761765033338,-156.78293119,0.00020973,2]
[392631683,1761765033348,-500.0,0.00020973,2]
[392631684,1761765033359,-500.0,0.00020973,2]
[392631685,1761765033368,-500.0,0.00020973,2]
[392631686,1761765033379,-500.0,0.00020973,2]
[392631687,1761765033388,-500.0,0.00020973,2]
[392631688,1761765033398,-500.0,0.00020973,2]
[392631689,1761765033407,-44476.4433602,0.0002099,2]
[392631690,1761765033417,-500.0,0.00021185,2]
[392631691,1761765033427,-1000.0,0.00021221,2]
[392631692,1761765033437,-1000.0,0.00021221,2]
[392631693,1761765033447,-446.49,0.00021372,2]
[392631694,1761765033457,-150.0,0.000214,2]
[392631695,1761765033467,-500.0,0.00021459,2]
[392631696,1761765033477,-500.0,0.00021466,2]
[392631697,1761765033487,-500.0,0.00021466,2]
[392631698,1761765033497,-500.0,0.00021466,2]
[392631699,1761765033506,-500.0,0.00021466,2]
[392631700,1761765033516,-500.0,0.00021467,2]
[392631701,1761765033526,-500.0,0.00021467,2]
[392631702,1761765033535,-500.0,0.00021472,2]
[392631703,1761765033545,-500.0,0.00021472,2]
[392631704,1761765033555,-500.0,0.00021473,2]
[392631705,1761765033565,-215.91216906,0.00021473,2]
[392631706,1761765033575,-500.0,0.00021473,2]
[392631707,1761765033584,-500.0,0.00021473,2]
[392631708,1761765033593,-500.0,0.00021473,2]
[392631709,1761765033603,-500.0,0.00021473,2]
[392631710,1761765033612,-500.0,0.00021473,2]
[392631711,1761765033621,-500.0,0.00021473,2]
[392631712,1761765033632,-500.0,0.00021473,2]
[392631713,1761765033641,-500.0,0.00021473,2]
[392631714,1761765033651,-500.0,0.00021473,2]
[392631715,1761765033660,-500.20466782,0.00021473,2]
[392631716,1761765033670,-500.0,0.00021473,2]
[392631717,1761765033679,-500.0,0.00021473,2]
[392631718,1761765033688,-500.0,0.00021473,2]
[392631719,1761765033697,-500.92487989,0.00021473,2]
[392631720,1761765033707,-500.82940851,0.00021473,2]
[392631721,1761765033717,-161.09593635,0.00021473,2]
[392631722,1761765033726,-500.0,0.00021473,2]
[392631723,1761765033736,-160.28730526,0.00021473,2]
[392631724,1761765033746,-501.07422238,0.00021473,2]
[392631725,1761765033756,-399.79653134,0.00021473,2]
[392631726,1761765033766,-316.61324815,0.00021473,2]
[392631727,1761765033775,-500.0,0.00021473,2]
[392631728,1761765033784,-238.198124,0.00021473,2]
[392631729,1761765033794,-158.75342705,0.00021473,2]
[392631730,1761765033803,-500.23391251,0.00021473,2]
[392631731,1761765033812,-576.46730191,0.00021473,2]
[392631732,1761765033823,-500.0,0.00021477,2]
[392631733,1761765033834,-500.0,0.00021477,2]
[392631734,1761765033844,-500.0,0.00021479,2]
[392631735,1761765033854,-500.0,0.00021479,2]
[392631736,1761765033864,-500.0,0.00021479,2]
[392631737,1761765033874,-500.0,0.00021479,2]
[392631738,1761765033883,-433.46703428,0.00021479,2]
[392631739,1761765033893,-500.0,0.00021479,2]
[392631740,1761765033904,-386.14804497,0.00021479,2]
[392631741,1761765033920,-370000.0,0.0002148,2]
[392631742,1761765033930,-500.0,0.0002148,2]
[392631743,1761765033939,-316.50094678,0.00021646,2]
[392631744,1761765033949,-500.0,0.00021733,2]
[392631745,1761765033961,-500.0,0.00021754,2]
[392631746,1761765033970,-1500.0,0.00021768,2]
[392631747,1761765033979,-1088.59416845,0.00021768,2]
[392631748,1761765033989,-2277.46566513,0.00021794,2]
[392631749,1761765033999,-634.09,0.00021896,2]
[392631750,1761765034008,-500.0,0.00021896,2]
[392631751,1761765034018,-300.0,0.00021909,20]
[392631752,1761765034028,-300.0,0.00021909,20]
[392631753,1761765034038,-300.0,0.00021909,20]
[392631754,1761765034047,-300.0,0.00021909,20]
[392631755,1761765034056,-300.0,0.00021909,20]
[392631756,1761765034065,-300.0,0.00021909,20]
[392631757,1761765034077,-300.0,0.00021909,20]
[392631758,1761765034086,-300.0,0.00021909,20]
[392631759,1761765034096,-300.0,0.00021909,20]
[392631760,1761765034107,-300.0,0.00021909,20]
[392631761,1761765034116,-300.0,0.00021909,20]
[392631762,1761765034126,-300.0,0.00021909,20]
[392631763,1761765034136,-300.0,0.00021909,20]
[392631764,1761765034146,-300.0,0.00021909,20]
[392631765,1761765034156,-300.0,0.00021909,20]
[392631766,1761765034166,-600.0,0.00021909,20]